Cogmind - Beta 14 @@@ ROGUE MODE // 2024.11.10 @ 12:56:08 Player: Fangrelle Result: Destroyed by G-47 Trooper with Particle Gun Performance ------------- Evolutions (3) 1500 Regions Visited (6) 1200 Robots Destroyed (120) 600 Value Destroyed (3440) 3440 Prototype IDs (28) 560 Alien Tech Used (0) 0 Bonus (447) 447 TOTAL SCORE: 7747 Bonus ------- High Alert Combat Kills 77 Follower Combat Kills 70 Aligned with FarCom 300 Cogmind --------- Core Integrity 0/700 Matter 48/300 Energy 35/100 System Corruption 0% Temperature Cool (30) Movement Flying (26) Location -7/Factory Parts ------- > --- POWER (1) -------- (None) > --- PROPULSION (4) --- Improved VTOL Module Improved VTOL Module Improved VTOL Module Improved VTOL Module > --- UTILITY (6) ------ Large Storage Unit Advanced Visual Processing Unit Hacking Suite Hacking Suite System Shield > --- WEAPON (2) ------- (None) > --- INVENTORY (15) --- Cesium-ion Thruster Improved VTOL Module Melee Analysis Suite Hacking Suite Hacking Suite System Shield Component Analysis Suite High-powered Tractor Beam Trap Reconfigurator Improved Field Recycling Unit (0) Sensor Drone Bay (20/20) Rocket Launcher Improved Datajack Remote Datajack Maul Peak State ------------ > --- POWER ------------ Improved Deuterium Engine > --- PROPULSION ------- Airjet Aerolev Unit Aerolev Unit Combat Airjet > --- UTILITY ---------- Large Storage Unit Advanced Visual Processing Unit Hacking Suite Hacking Suite System Shield Trap Reconfigurator > --- WEAPON ----------- Improved Datajack Maul > --- INVENTORY -------- Aerolev Unit Hacking Suite System Shield Component Analysis Suite Sensor Drone Bay Assault Cannon Rocket Launcher Remote Datajack [Rating: 50] Favorites ----------- Power Ion Engine Engine Ion Engine Propulsion Light Treads Treads Light Treads Leg Improved Aluminum Leg Wheel Wheel Hover Unit Aerolev Unit Flight Unit Improved VTOL Module Utility High-capacity Storage Unit Device Improved Heat Sink Storage High-capacity Storage Unit Processor Advanced Targeting Computer Hackware Hacking Suite Protection Medium Armor Plating Weapon Assault Cannon Energy Gun EM Pulse Gun Energy Cannon Light EM Pulse Cannon Ballistic Gun Light Assault Rifle Ballistic Cannon Assault Cannon Launcher Mini Grenade Launcher Special Weapon Mining Laser Impact Weapon Maul Special Melee Weapon Improved Datajack Build | -11 -10 -10 -10 -9 -8 -7 ------- Run | Yrd Mat Min Exi Min Mat Fac Slots Evolved 6 | . . . . . 4 2 Power . | . . . . . . . Propulsion 2 | . . . . . . 2 Utility 4 | . . . . . 4 . Weapon . | . . . . . . . Parts Attached 156 | 6 31 12 1 7 69 30 Power 11 | 1 1 . . 1 6 2 Engine 11 | 1 1 . . 1 6 2 Core . | . . . . . . . Reactor . | . . . . . . . Propulsion 33 | 2 5 . . 3 11 12 Treads 15 | 2 2 . . . 9 2 Leg 2 | . 2 . . . . . Wheel 4 | . 1 . . 3 . . Hover 6 | . . . . . 1 5 Flight 6 | . . . . . 1 5 Utility 49 | 1 13 3 1 . 27 4 Device 19 | . 4 . . . 13 2 Storage 3 | 1 1 . . . . 1 Processor 8 | . 3 1 . . 4 . Hackware 3 | . . . . . 2 1 Protection 16 | . 5 2 1 . 8 . Artifact . | . . . . . . . Weapon 63 | 2 12 9 . 3 25 12 Energy Gun 4 | 1 2 . . . 1 . Energy Cannon 17 | . 6 5 . 1 5 . Ballistic Gun 2 | 1 . 1 . . . . Ballistic Cannon 21 | . . . . 1 13 7 Launcher 7 | . 1 3 . 1 2 . Special Weapon 8 | . 3 . . . 4 1 Impact Weapon 2 | . . . . . . 2 Slashing Weapon . | . . . . . . . Piercing Weapon . | . . . . . . . Special Melee Weapon 2 | . . . . . . 2 Unidentified Prototypes 5 | . . . . . 5 . Parts Lost 26 | . 1 1 . 3 10 11 Power 4 | . . . . . 2 2 Propulsion 8 | . . . . 1 1 6 Utility 7 | . 1 . . 1 5 . Weapon 7 | . . 1 . 1 2 3 Highest Loss Streak 6 | . 1 1 . 2 6 4 To Critical Strikes 1 | . . . . . 1 . Average Slot Usage (%) 91 | . 99 98 71 86 93 83 Engine 10 | . 14 14 14 14 7 5 Treads 13 | . 8 28 28 . 13 9 Leg 4 | . 17 . . . . . Wheel 2 | . 1 . . 22 1 . Hover 1 | . . . . . . 6 Device 4 | . 5 . . . 10 . Storage 11 | . 14 14 14 14 9 7 Processor 8 | . 2 . 11 . 13 18 Hackware 6 | . . . . . 12 17 Protection 6 | . 6 13 2 9 8 . Energy Gun 1 | . 5 . . . . . Energy Cannon 7 | . 18 17 . 7 2 . Ballistic Gun 1 | . 1 8 . . . . Ballistic Cannon 6 | . . . . 6 13 9 Launcher 1 | . . 1 . 9 . . Peak Build Rating 50 | 6 15 14 10 18 40 50 Average Rating 23 | 4 12 13 8 14 33 38 On Entrance 12 | . 6 12 11 10 13 37 Naked Turns . | . . . . . . . Heaviest Build 79 | 14 60 60 52 62 79 60 Greatest Support 42 | 40 40 40 40 40 42 40 Greatest Overweight (x) 23 | 3 5 1 1 5 23 4 Average Overweight (x) 1 | . 1 1 1 2 2 . Largest Inventory Capacity 20 | 8 20 20 20 20 20 20 Average Capacity 19 | 7 19 20 20 20 20 18 Most Carried 20 | 2 20 20 20 20 20 20 Average Carried 18 | 1 18 18 19 19 19 17 Final Capacity 20 | 8 20 20 20 20 20 15 Final Carried 20 | 2 19 18 20 20 20 15 Class Distribution -------------------- 62% | Mutant 29% | Hacker-Mutant 7% | Scavenger-Mutant Dominant Class ---------------- Mutant | -10/Materials Mutant | -10/Mines Mutant | -10/Exiles Mutant | -9/Mines Mutant | -8/Materials Hacker-Mutant | -7/Factory Resources | -11 -10 -10 -10 -9 -8 -7 ----------- Run | Yrd Mat Min Exi Min Mat Fac Matter Collected 3410 | 260 476 378 73 251 1568 404 Remotely . | . . . . . . . Salvage Created 3561 | . 923 648 . 145 1517 328 Parts 208 | . 61 28 . 15 90 14 Haulers Intercepted 6 | . 1 . . . 5 . Recyclers Shooed 2 | . . . . . 2 . Parts Field Recycled . | . . . . . . . Retrieved Matter . | . . . . . . . Parts Self-Destructed . | . . . . . . . Prevented . | . . . . . . . Kills | -11 -10 -10 -10 -9 -8 -7 ------- Run | Yrd Mat Min Exi Min Mat Fac Combat Hostiles Destroyed 83 | . 22 14 . 4 33 10 Melee 2 | . . . . . . 2 Guns 7 | . 6 . . . 1 . Cannons 54 | . 14 9 . 2 22 7 AOE 19 | . 2 4 . 2 10 1 Classes Destroyed 15 | . 6 2 . 3 2 2 Worker 7 | . . . . 1 6 . Builder 4 | . 1 . . 1 2 . Tunneler 1 | . . . . 1 . . Hauler 6 | . 1 . . . 5 . Recycler 5 | . . 2 . . 3 . Operator 6 | . 4 . . . 1 1 Watcher 8 | . 3 . . . 4 1 Swarmer 20 | . 6 6 . . 8 . Grunt 46 | . 16 6 . 2 20 2 Brawler 1 | . . . . . 1 . Duelist 1 | . . . . . 1 . Sentry 8 | . . . . 2 3 3 Demolisher 2 | . . 2 . . . . Hunter 2 | . . . . . . 2 Programmer 3 | . . . . . . 3 Best Kill Streak 6 | . 5 3 . 3 6 3 Combat Bots Only 4 | . 3 3 . 2 4 3 Max Kills in Single Turn 4 | . 2 2 . 2 4 1 Gunslinging . | . . . . . . . Exploded 3 | . 1 1 . 1 3 1 Melee 1 | . . . . . . 1 Uniques/NPCs Destroyed . | . . . . . . . Combat | -11 -10 -10 -10 -9 -8 -7 -------- Run | Yrd Mat Min Exi Min Mat Fac Hostile Shots Fired 574 | . 73 46 . 18 206 231 Missed 173 | . 22 15 . 4 56 76 Damage Taken 6013 | . 641 666 . 261 2124 2321 Core 1250 | . 31 112 . 15 381 711 Absorbed by Shields 290 | . 57 . . . 233 . Regen/Repaired (Parts) 5 | . . . . . 5 . Core Remaining (%) 55 | 100 . . . 36 30 . Volleys Fired 280 | . 80 34 . 11 119 36 Largest 2 | . 2 2 . 2 2 2 Hottest 144 | . 112 112 . 86 144 100 Shots Fired 490 | . 139 56 . 15 219 61 Gun 73 | . 58 6 . . 9 . Cannon 379 | . 67 47 . 9 197 59 Launcher 18 | . 2 3 . 6 7 . Special 20 | . 12 . . . 6 2 Kinetic 238 | . 15 6 . 1 157 59 Thermal 46 | . 27 . . . 17 2 Explosive 18 | . 2 3 . 6 7 . Electromagnetic 188 | . 95 47 . 8 38 . Robot Hit Streak 17 | . 17 7 . 10 17 10 Robot Miss Streak 22 | . 4 3 . 1 22 2 Penetration Max 1 | . . . . . 1 . Secondary Targets . | . . . . . . . Shots Hit Robots 309 | . 74 30 . 7 148 50 Core Hits 182 | . 37 20 . 11 96 18 Critical Kills 3 | . . . . . 3 . Critical Parts Destroyed 2 | . . . . . 2 . Critical Strikes 10 | . . 1 . . 9 . Destroy 5 | . . . . . 5 . Blast 3 | . . . . . 3 . Corrupt 2 | . . 1 . . 1 . Melee Attacks 12 | . . . . . . 12 Impact 11 | . . . . . . 11 Slashing . | . . . . . . . Piercing . | . . . . . . . Sneak Attacks . | . . . . . . . Combat Hostiles . | . . . . . . . Follow-up Attacks . | . . . . . . . Damage Inflicted 9059 | . 2033 1049 . 391 4198 1388 Guns 535 | . 457 15 . . 63 . Cannons 6260 | . 1080 625 . 82 3408 1065 Explosions 2033 | . 496 409 . 309 727 92 Melee 231 | . . . . . . 231 Ramming . | . . . . . . . Kinetic 3837 | . 143 15 . 10 2604 1065 Thermal 1185 | . 445 318 . . 330 92 Explosive 1146 | . 139 91 . 309 607 . Electromagnetic 2660 | . 1306 625 . 72 657 . Impact 231 | . . . . . . 231 Slashing . | . . . . . . . Piercing . | . . . . . . . Highest Corruption 4 | . 4 4 4 4 4 3 Average Corruption 3 | . 3 4 4 4 4 2 Corruption Purged 3 | . . . . . . 3 Corruption Blocked . | . . . . . . . Effects 143 | . 16 43 23 25 2 34 Message Errors 41 | . 3 10 6 8 1 13 Matter Fused 38 | . 8 12 7 7 . 4 Heat Flow Errors 19 | . 2 7 4 3 . 3 Energy Discharges 21 | . 2 6 5 4 . 4 Parts Fused 1 | . . . . 1 . . Data Loss (minor) 13 | . 1 4 . 1 1 6 Data Loss (major) 7 | . . 3 1 . . 3 Misfires 1 | . . . . 1 . . Alerts 2 | . . 1 . . . 1 Overload Shots . | . . . . . . . Overflow Damage 283 | . 101 13 . 2 74 93 Projectiles 116 | . 56 . . . 38 22 Explosions 165 | . 45 13 . 2 36 69 Melee 2 | . . . . . . 2 Knockbacks 55 | . . . . . 39 16 Impact 2 | . . . . . . 2 Kinetic 52 | . . . . . 38 14 Secondary 1 | . . . . . 1 . Self-Inflicted Damage 459 | . 116 75 . 48 14 206 Shots 12 | . 4 3 . 1 1 3 Rammed . | . . . . . . . Targets Rammed . | . . . . . . . Kicked . | . . . . . . . Crushed . | . . . . . . . Highest Temperature 560 | . 325 250 260 438 560 222 Average Temperature 93 | . 76 90 121 154 108 49 Received Heat Transfer 1821 | . 253 51 . 90 1007 420 Effects 19 | . 1 . . 1 17 . Shutdowns 2 | . 1 . . . 1 . Energy Bleed 1 | . . . . . 1 . Interference 3 | . . . . . 3 . Matter Decay 1 | . . . . . 1 . Short Circuit 3 | . . . . 1 2 . Damage (minor) 1 | . . . . . 1 . Damage (major) 7 | . . . . . 7 . Damage (core) 1 | . . . . . 1 . Siege Activations . | . . . . . . . Robots Corrupted 1 | . . 1 . . . . Combat Hostiles 1 | . . 1 . . . . Parts Fried 15 | . 7 4 . . 4 . Impact Corruptions 1 | . . . . . . 1 Robots Melted . | . . . . . . . Combat Hostiles . | . . . . . . . Parts Melted 4 | . 1 2 . . 1 . Heat Transferred 1642 | . 759 350 . . 483 50 Parts Sabotaged . | . . . . . . . Parts Stolen . | . . . . . . . Parts Stripped . | . . . . . . . Power Chain Reactions 11 | . 7 2 . . 2 . Alert | -11 -10 -10 -10 -9 -8 -7 ------- Run | Yrd Mat Min Exi Min Mat Fac Peak Influence 512 | . 269 250 . 69 512 236 Initial 206 | . . 94 . . . 206 Average 153 | . 112 89 . 33 314 85 Maximum Alert Level 2 | . 1 1 . . 2 1 Low Security (%) 70 | 100 90 83 . 100 32 78 Level 1 16 | . 9 16 . . 22 21 Level 2 13 | . . . . . 45 . Level 3 . | . . . . . . . Level 4 . | . . . . . . . Level 5 . | . . . . . . . High Security . | . . . . . . . Max Security . | . . . . . . . Squads Dispatched 21 | . 8 . . 1 6 6 Investigation 9 | . 4 . . . 3 2 Extermination 3 | . . . . . . 3 Reinforcement 7 | . 4 . . . 2 1 Assault 1 | . . . . 1 . . Garrison 1 | . . . . . 1 . Intercept . | . . . . . . . Searches Triggered . | . . . . . . . Construction Impeded 1 | . . . . . 1 . Haulers Reinforced . | . . . . . . . Active Scanning Responses . | . . . . . . . Cargo Convoy Interrupts . | . . . . . . . Stealth | -11 -10 -10 -10 -9 -8 -7 --------- Run | Yrd Mat Min Exi Min Mat Fac Distress Signals 3 | . 2 . . . 1 . Communications Jammed . | . . . . . . . Distress Signals . | . . . . . . . Times Spotted 132 | . 36 15 . 4 46 31 Peak Tracking Total 9 | . 4 3 . 2 5 9 Tactical Retreats 6 | . . 1 . . 1 4 Traps | -11 -10 -10 -10 -9 -8 -7 ------- Run | Yrd Mat Min Exi Min Mat Fac Traps Triggered 9 | . 4 . . . 2 3 Indirectly . | . . . . . . . Trap Hack Attempts . | . . . . . . . Triggered . | . . . . . . . Disarmed . | . . . . . . . Reprogrammed . | . . . . . . . Reused 4 | . . . . . 2 2 Traps Reconfigurated 8 | . . . . . 2 6 Traps Extracted . | . . . . . . . Installed . | . . . . . . . Triggered 4 | . . . . . 2 2 Objects Rigged 1 | . . . . . 1 . Machines | -11 -10 -10 -10 -9 -8 -7 ---------- Run | Yrd Mat Min Exi Min Mat Fac Machines Disabled 10 | . 1 1 . 1 2 5 Max in Single Turn 4 | . 1 1 . 1 1 4 Garrison Access 1 | . . . . . 1 . Machines Repaired . | . . . . . . . Machines Dismantled . | . . . . . . . Machines Sabotaged . | . . . . . . . Overloaded Fab Kills . | . . . . . . . Hacking | -11 -10 -10 -10 -9 -8 -7 --------- Run | Yrd Mat Min Exi Min Mat Fac Machines Accessed 28 | . 8 . 3 1 12 4 Terminals 15 | . 6 . . . 8 1 Fabricators 1 | . . . . . . 1 Repair Stations 1 | . . . . . 1 . Recycling Units 4 | . 2 . . . 1 1 Scanalyzers 1 | . . . . . 1 . Garrison Access 2 | . . . . . 1 1 Total Hacks 97 | . 18 . 14 1 54 10 Successful 76 | . 10 . 14 1 46 5 Failed 20 | . 7 . . . 8 5 Catastrophic 1 | . . . . . . 1 Database Lockouts 1 | . 1 . . . . . Manual 49 | . 15 . 1 . 28 5 Terminals 45 | . 14 . . . 30 1 Fabricators 3 | . . . . . . 3 Repair Stations 4 | . . . . . 4 . Recycling Units 10 | . 4 . . . 2 4 Scanalyzers 16 | . . . . . 16 . Garrison Access 4 | . . . . . 2 2 Terminal Hacks 24 | . 1 . 14 1 7 1 Record 15 | . . . 13 . 2 . Robot Analysis 3 | . 1 . . . 2 . Open Door 1 | . . . . 1 . . Open DSF 1 | . . . . . . 1 Branch Access Points 1 | . . . . . 1 . Alert Level 2 | . . . . . 2 . Derelict Proto ID Bank 1 | . . . 1 . . . Fabricator Hacks 2 | . . . . . . 2 Load Schematic 1 | . . . . . . 1 Build 1 | . . . . . . 1 Repair Station Hacks 4 | . . . . . 4 . Scan Component 2 | . . . . . 2 . Repair 2 | . . . . . 2 . Recycling Unit Hacks 3 | . 2 . . . 1 . Report Inventory 3 | . 2 . . . 1 . Scanalyzer 16 | . . . . . 16 . Insert Component 7 | . . . . . 7 . Analyze 9 | . . . . . 9 . Garrison Access Hacks 1 | . . . . . 1 . Seal Access 1 | . . . . . 1 . Unauthorized Hacks 26 | . 7 . . . 17 2 Terminals 21 | . 5 . . . 16 . Track 1 | . . . . . 1 . Assimilate 1 | . . . . . 1 . Botnet 11 | . 4 . . . 7 . Detonate 2 | . . . . . 2 . Operators 2 | . 1 . . . 1 . Skim 4 | . . . . . 4 . Fabricators . | . . . . . . . Repair Stations . | . . . . . . . Recycling Units 5 | . 2 . . . 1 2 Reject 1 | . . . . . . 1 Mask 1 | . . . . . . 1 Tunnel 3 | . 2 . . . 1 . Scanalyzers . | . . . . . . . Garrison Access . | . . . . . . . Data Cores Recovered . | . . . . . . . Used . | . . . . . . . Hacking Detections 18 | . 6 . . . 9 3 Full Trace Events 3 | . . . . . 1 2 Feedback Events . | . . . . . . . Feedback Blocked . | . . . . . . . Robot Schematics Acquired . | . . . . . . . Robots Built . | . . . . . . . Authchips . | . . . . . . . Time . | . . . . . . . Total Robot Build Rating . | . . . . . . . Part Schematics Acquired 7 | . . . . . 7 . Parts Built 1 | . . . . . . 1 Authchips . | . . . . . . . Time 116 | . . . . . . 116 Total Part Build Rating 3 | . . . . . . 3 Parts Repaired 2 | . . . . . 2 . Time 120 | . . . . . 120 . Parts Recycled . | . . . . . . . Recycled Matter . | . . . . . . . Retrieved Matter . | . . . . . . . Retrieved Components . | . . . . . . . Parts Scanalyzed 7 | . . . . . 7 . Part Schematics Acquired 7 | . . . . . 7 . Parts Damaged 1 | . . . . . 1 . Bothacking | -11 -10 -10 -10 -9 -8 -7 ------------ Run | Yrd Mat Min Exi Min Mat Fac Used RIF Installer . | . . . . . . . Robots Hacked . | . . . . . . . Non-combat . | . . . . . . . Combat . | . . . . . . . Robot Hacks Applied . | . . . . . . . Relay Couplers Released . | . . . . . . . Fabnet Peak Effective % . | . . . . . . . Robots Rewired . | . . . . . . . Allies Hacked . | . . . . . . . Hacks Repelled . | . . . . . . . Allies | -11 -10 -10 -10 -9 -8 -7 -------- Run | Yrd Mat Min Exi Min Mat Fac Total Allies 4 | . . 2 . 1 1 . Largest Group 2 | . . 2 2 1 1 1 Highest-Rated Group 45 | . . 45 45 31 31 10 Highest-Rated Ally 31 | . . 31 31 31 31 10 Total Orders 5 | . . . . . 4 1 STAY 3 | . . . . . 2 1 FOLLOW 2 | . . . . . 2 . Ally Attacks 11 | . . . . . 11 . Total Damage 205 | . . . . . 205 . Kills 2 | . . . . . 2 . Allies Corrupted . | . . . . . . . Allies Melted . | . . . . . . . Intel | -11 -10 -10 -10 -9 -8 -7 ------- Run | Yrd Mat Min Exi Min Mat Fac Robot Analysis Total 3 | . 1 . . . 2 . Derelict Logs Recovered 2 | . . 1 . 1 . . Drone Launches . | . . . . . . . Drone Recoveries . | . . . . . . . Exploration | -11 -10 -10 -10 -9 -8 -7 ------------- Run | Yrd Mat Min Exi Min Mat Fac Turns Passed 14130 | 85 3230 1971 855 1239 3840 2910 Spaces Moved 6482 | 47 1127 756 355 949 1172 2076 Core 10 | 9 . . . . 1 . Treads 3055 | 38 362 756 355 7 929 608 Legs 611 | . 611 . . . . . Wheels 1338 | . 154 . . 942 242 . Hover 1055 | . . . . . . 1055 Flight 413 | . . . . . . 413 Fastest Speed 26 | 50 155 240 240 110 170 26 Average Speed 182 | 159 222 240 240 125 254 117 Slowest Speed 1200 | 200 330 240 240 320 1200 330 Overloaded Moves . | . . . . . . . Propulsion Burnouts . | . . . . . . . Robots Hopped . | . . . . . . . Cave-ins Triggered . | . . . . . . . Exploration Rate (%) 61 | 4 97 99 69 86 62 15 Regions Visited 6 Branch Regions 3 Pre-discovered Areas 5 | . 2 1 1 . 1 . Known Exits Taken 1 | . . 1 . . . . Unknown Exits Taken 5 | 1 1 . 1 1 1 . Scrap Searched 2 | . . 1 . 1 . . Spaces Dug 15 | . 7 . . . 6 2 Terrain Destroyed 268 | . 45 52 . 58 79 34 Melee 2 | . . . . . . 2 Projectile 36 | . 12 . . . 22 2 AOE 230 | . 33 52 . 58 57 30 Terrain Rammed . | . . . . . . . Walls Destroyed . | . . . . . . . Machines Disabled . | . . . . . . . Actions | -11 -10 -10 -10 -9 -8 -7 --------- Run | Yrd Mat Min Exi Min Mat Fac Total 8215 | 54 1685 858 361 986 1802 2469 Wait 1064 | . 386 48 . 6 346 278 Move 6476 | 46 1126 755 354 948 1171 2076 Hop . | . . . . . . . Pick Up 106 | 2 37 3 2 7 39 16 Fast Attach 62 | 6 9 1 . 1 33 12 Attach 37 | . 1 2 1 4 15 14 Detach 13 | . . 2 2 . 5 4 Swap 57 | . 21 9 . 2 21 4 Drop 108 | . 25 4 2 7 53 17 Fire 280 | . 80 34 . 11 119 36 Melee 12 | . . . . . . 12 Ram . | . . . . . . . Kick . | . . . . . . . Crush . | . . . . . . . Escape Stasis . | . . . . . . . Rewire . | . . . . . . . Trap . | . . . . . . . Miscellaneous . | . . . . . . . Route ------- -11/Scrapyard -10/Materials (discovered 6 exits: [*Mat x3] / [*Min x2] / [*Sub]) -10/Mines (discovered 4 exits: [*Mat x2] / *Exi / [*Sub]) -10/Exiles -9/Mines (discovered 2 exits: *Mat x2) -8/Materials (discovered 2 exits: *Fac x2) -7/Factory History --------- Turn | Location | Event 17 | -11/Scrapyard | Discovered new exit (range 16) 86 | -11/Scrapyard | Entered Materials 317 | -10/Materials | Build established: Mutant 1062 | -10/Materials | Discovered new exit (range 13) 2033 | -10/Materials | Discovered new exit (range 15) 2284 | -10/Materials | Discovered new exit (range 8) 2397 | -10/Materials | Discovered new exit (range 9) 2469 | -10/Materials | Discovered new exit (range 3) 2624 | -10/Materials | Central database locked down 2810 | -10/Materials | Discovered new exit (range 6) 3316 | -10/Materials | Entered Mines 3317 | -10/Mines | Assembled infested the area 3323 | -10/Mines | Received a Rocket Launcher from a helpful Derelict 3390 | -10/Mines | Met 8R-AWN 3466 | -10/Mines | Core integrity fell below 50% 3546 | -10/Mines | Learned location of Zion (-6) 3916 | -10/Mines | Discovered new exit (range 9) 4586 | -10/Mines | Discovered new exit (range 5) 4914 | -10/Mines | Discovered new exit (range 16) 5130 | -10/Mines | Discovered new exit (range 5) 5287 | -10/Mines | Identified exit to Exiles 5287 | -10/Mines | Entered Exiles 5287 | -10/Exiles | Accompanied by 2 allies 5317 | -10/Exiles | Led the pair of lost Derelicts to a safe place 5348 | -10/Exiles | Welcomed by 8R-AWN 5387 | -10/Exiles | Met EX-HEX 5456 | -10/Exiles | Met EX-BIN 5490 | -10/Exiles | Aligned with FarCom system 5492 | -10/Exiles | Given EX-Vault access code 5557 | -10/Exiles | Opened EX-Vault 5575 | -10/Exiles | Found Trap Reconfigurator 5628 | -10/Exiles | Warned to stay clear of 0b10 Research branches 5844 | -10/Exiles | Met EX-DEC 6108 | -10/Exiles | Discovered new exit (range 14) 6142 | -10/Exiles | Left Exiles lab with Trap Reconfigurator 6142 | -10/Exiles | Entered Mines 6193 | -9/Mines | Discovered new exit (range 12) 6194 | -9/Mines | Met a Derelict bent on vengeance 6394 | -9/Mines | Learned Materials security intel 6424 | -9/Mines | Discovered new exit (range 11) 6435 | -9/Mines | Found a damaged Exp. Sensor Array with a note attached 6438 | -9/Mines | Found Prototype Device 6456 | -9/Mines | A weapon hastily lodged in a ceiling crevice suddenly fell to the ground 6947 | -9/Mines | Found the Drone Emporium 6959 | -9/Mines | Found Prototype Device 7365 | -9/Mines | Met a Derelict testing a Signal Generator 7381 | -9/Mines | Entered Materials 7381 | -8/Materials | Accompanied by 1 ally 7381 | -8/Materials | Evolved 4 slots: Utility x4 7381 | -8/Materials | Identified Sensor Drone Bay 7382 | -8/Materials | Identified Exp. Sensor Array 7746 | -8/Materials | Discovered new exit (range 15) 8099 | -8/Materials | Garrison activated, responded to threat 8181 | -8/Materials | Lost 6 parts (1p5u) 8472 | -8/Materials | Build established: Scavenger-Mutant 8576 | -8/Materials | Discovered new exit (range 5) 9130 | -8/Materials | Core integrity fell below 50% 9306 | -8/Materials | Build established: Mutant 10219 | -8/Materials | Build established: Hacker-Mutant 10889 | -8/Materials | Repaired Broken Aerolev Unit 10934 | -8/Materials | Repaired Component Analysis Suite 11221 | -8/Materials | Entered Factory 11221 | -7/Factory | Accompanied by 1 ally 11221 | -7/Factory | Evolved 2 slots: Propulsion x2 13627 | -7/Factory | Core integrity fell below 50% 13687 | -7/Factory | Lost 4 parts (3n1w) 13743 | -7/Factory | Core integrity fell below 20% 14011 | -7/Factory | Fabricated Imp. VTOL Module (x1) 14131 | -7/Factory | Destroyed by G-47 Trooper with Particle Gun Last Messages --------------- Rating: 3p Time: 116 Initiate build sequence. >>Build Building Imp. VTOL Module... ETC: 116 13895_ ALERT: Unauthorized use of fabrication network. Dispatching investigation squad. 13917_ System Restoration Module purges 1% system corruption (0%). 13995_ Cesium-ion Thruster destroyed. 13999_ Slug penetrates Wall. 14009_ Penetrated by Slug. 14011_ Fabricator completes Imp. VTOL Module. 14011_ Slug penetrates Wall. 14053_ Acquired Imp. VTOL Module. 14070_ Acquired Cesium-ion Thruster. 14085_ U-05 Engineer builds a Wall. 14125_ Connecting with Garrison Access... 14125_ ALERT: Suspicious activity at Garrison Access F001. Dispatching Investigation squad. 14126_ Discarded System Restoration Module. 14127_ Drone sends a signal. Map ----- +----------------------------------------------------+ | ????????????????????##############???############# | | ????????????????????# #???# | | ????????????????????# #???# | | ????????????????????# #???# | | ????????????????????# #???# | | ????????????????????# #???# | | ????????????????????# #???# | | ????????????????????# #???# | | ????????????????????# #???# | | ????????????????????# #???# | | ?????? ?????????????# #???# | | ????? ??????????# ]#???# | | ?????T ????????# #???# | | ?????# g##############+##################+### | | ???? l | | ???? g g ^ | | ??? ""G"" | | ??? " " ^ | | ??? g" " | | ??? g ^ | | ??? """ ^ | | ?????####+############### ]]] """ ############ | | ????????????????????????# ]]] """ #?????# | | ????????????????????????# ]] #?????# """ | | ????????????????????????# ####### "Y" | | ????????????????????????#@ + ! | | ????????????????????????# ########## !!/ | | ????????????????????????# ### ##????????# !// | | ????????????????????????#+#+###?#+#?????????# !/ | | ???????????????????????????????? ???????????# | | ??????????????????????????????? ???????????#|"""" | | ?????????????????????????????? ????????????# | | ?????????????????????????????? ?????????????# """" | | ????????????????????????????? ?????????????# | | ???????????????????????????? ??????????????#### # | | ???????????????????????????? ??????????????????### | | ?????????????????????????????????????????????????? | | ?????????????????????????????????????????????????? | | ?????????????????????????????????????????????????? | | ?????????????????????????????????????????????????? | | ?????????????????????????????????????????????????? | | ?????????????????????????????????????????????????? | | ?????????????????????????????????????????????????? | | ?????????????????????????????????????????????????? | | ?????????????????????????????????????????????????? | | ?????????????????????????????????????????????????? | | ?????????????????????????????????????????????????? | | ?????????????????????????????????????????????????? | | ?????????????????????????????????????????????????? | | ?????????????????????????????????????????????????? | +----------------------------------------------------+ Best States ------------- Heat Dissipation 73 Energy Generation 18 Energy Capacity 290 Matter Stores 300 Matter Capacity 300 Sight Range 20 Terrain Scan Density 10 Base Temperature (-) 100 Armor Coverage 600 Evasion (%) 64 Targeting Accuracy 16 Recoil Reduction 2 Salvage Targeting 1 Offensive Hacking 20 Defensive Hacking 10 Item Schematics ----------------- Hacking Suite | -8/Materials | Scanalyzed Cryofiber Web | -8/Materials | Scanalyzed Imp. VTOL Module | -8/Materials | Scanalyzed Cmb. Airjet | -8/Materials | Scanalyzed Aerolev Unit | -8/Materials | Scanalyzed Assault Cannon | -8/Materials | Scanalyzed Airjet | -8/Materials | Scanalyzed Robot Schematics ------------------ None Fabricated ------------ Imp. VTOL Module | x1 | -7/Factory Alien Tech Used ----------------- None Achievements -------------- None Challenges ------------ None Game ------ Seed BurstMicrowarpPit Manual? 0 Play Time 01:41:19 Cumulative 42.9 hours Start 2024.11.10 @ 10:46:07 End 2024.11.10 @ 12:56:08 Sessions 3 Manual Loads 0 Difficulty Rogue Special Mode None Game No. 79 Rogue 79 Adventurer 0 Explorer 0 Win Type - Total 0 Types 0/0/0/0/0/0/0/0/0 Lore% 35 Gallery% 30 Achievement% 32 Wizard Run 0 Options --------- Layout 0 ASCII 0 Keyboard 0 Movement Mouse Keybinds 0 Fullscreen 1 Font 24/Smallcaps Map View 183x50 Zoom Use 76% Tactical HUD 1 Map Filters NONE Filters NONE Steam 1 RUN: 09ffea9f-9ec6-4507-b3c8-0718a3dd2e6f